bitfinex-derivatives/quotes_BTCF0:USTF0_20251028
["timestamp","ask_amount","ask_price","bid_price","bid_amount"]
[1761685790450,0.4865,112490.0,112480.0,0.20473]
[1761685790762,0.4865,112490.0,112480.0,0.30654]
[1761685793257,0.3608,112490.0,112480.0,0.30654]
[1761685793465,0.4865,112500.0,112490.0,0.1275]
[1761685797164,0.1257,112490.0,112480.0,0.67893218]
[1761685797355,0.4865,112490.0,112480.0,0.67893218]
[1761685798360,0.4865,112490.0,112480.0,0.51407218]
[1761685798564,0.1652,112480.0,112470.0,0.06381973]
[1761685798765,0.1257,112470.0,112460.0,0.20125017]
[1761685798978,0.1257,112470.0,112460.0,0.20513973]
[1761685799270,0.1257,112470.0,112460.0,0.14132]
[1761685799271,0.4865,112470.0,112460.0,0.14132]
[1761685800468,0.1257,112450.0,112440.0,0.19281401]
[1761685800666,0.4865,112450.0,112440.0,0.19281401]
[1761685800869,0.4865,112450.0,112440.0,0.37141401]
[1761685801169,0.4865,112450.0,112440.0,0.14269428]
[1761685801468,0.4865,112450.0,112440.0,0.20574428]
[1761685801669,0.4865,112450.0,112440.0,0.30755428]
[1761685801970,0.4865,112450.0,112440.0,0.14269428]
[1761685802665,0.29506,112450.0,112440.0,0.14269428]
[1761685802861,0.29506,112450.0,112440.0,0.14273428]
[1761685803062,1.02825218,112450.0,112440.0,0.00149428]
[1761685803759,0.65586,112450.0,112440.0,0.00149428]
[1761685804070,0.7971,112450.0,112440.0,0.00149428]
[1761685805067,0.65586,112450.0,112440.0,0.00149428]
[1761685806266,1.03093218,112450.0,112440.0,0.00149428]
[1761685806655,1.03093218,112450.0,112430.0,0.00010388]
[1761685806863,1.03093218,112450.0,112390.0,0.14108]
[1761685806864,0.87695218,112440.0,112390.0,0.14108]
[1761685807062,0.3608,112400.0,112390.0,0.14108]
[1761685807261,0.3608,112400.0,112390.0,0.2300529]
[1761685807460,0.3608,112400.0,112390.0,0.230054]
[1761685807761,0.36090237,112400.0,112390.0,0.230054]
[1761685808066,0.36090237,112400.0,112390.0,0.14108]
[1761685808470,0.36090237,112400.0,112390.0,0.19947]
[1761685808875,0.36090237,112400.0,112390.0,0.08008]
[1761685809265,0.36090237,112400.0,112390.0,0.13798]
[1761685809673,0.36090237,112400.0,112390.0,0.19815]
[1761685810365,0.36090237,112400.0,112370.0,0.4187]
[1761685810366,0.73329455,112400.0,112370.0,0.4187]
[1761685810566,0.3608,112390.0,112370.0,0.19902]
[1761685811867,0.3608,112390.0,112370.0,0.25919]
[1761685812075,0.36090237,112400.0,112390.0,0.11807]
[1761685812266,0.00010237,112400.0,112390.0,0.63154218]
[1761685812568,0.00010237,112400.0,112390.0,0.99234218]
[1761685812969,0.00010237,112400.0,112390.0,1.08131708]
[1761685813575,0.00010237,112400.0,112390.0,0.61995]
[1761685813775,0.00010237,112400.0,112390.0,0.99234218]
[1761685813970,0.00010237,112400.0,112390.0,1.08131708]
[1761685814174,0.00010237,112400.0,112390.0,1.68399708]
[1761685814375,0.3608,112430.0,112420.0,0.15112]
[1761685814675,0.3608,112430.0,112420.0,0.23199]
[1761685815078,0.3608,112430.0,112420.0,0.17409]
[1761685815278,0.3608,112430.0,112400.0,0.51192]
[1761685815572,0.36348,112420.0,112400.0,0.03305]
[1761685815772,0.3608,112410.0,112400.0,0.03305]
[1761685815973,0.3608,112410.0,112400.0,0.14104]
[1761685816574,0.36348,112410.0,112390.0,0.14104]
[1761685816784,0.3608,112400.0,112390.0,0.14104]
[1761685818069,0.36348,112400.0,112360.0,1.53736]
[1761685818270,0.3608,112380.0,112370.0,0.1989]
[1761685818476,0.3608,112390.0,112370.0,0.1989]
[1761685818682,0.3608,112390.0,112370.0,0.25907]
[1761685819769,0.3608,112390.0,112380.0,0.09095]
[1761685819973,0.3608,112400.0,112390.0,0.11807]
[1761685820177,0.3608,112400.0,112390.0,0.14092]
[1761685820376,0.3608,112400.0,112380.0,0.141]
[1761685820676,0.3608,112390.0,112380.0,0.141]
[1761685820879,0.3608,112390.0,112380.0,0.29212]
[1761685821176,0.3608,112400.0,112390.0,0.0579]
[1761685821873,0.3608,112400.0,112390.0,0.11807]
[1761685822374,0.3608,112400.0,112380.0,0.59275]
[1761685822575,0.3608,112390.0,112380.0,0.29212]
[1761685822775,0.3608,112390.0,112380.0,0.17405]
[1761685823177,0.449775,112390.0,112380.0,0.17405]
[1761685823372,0.449775,112390.0,112380.0,0.03305]
[1761685823570,0.0889855,112380.0,112360.0,1.90818971]
[1761685823778,0.09891721,112380.0,112370.0,0.1408]
[1761685823983,0.4497855,112380.0,112370.0,0.1408]
[1761685826079,0.4497855,112380.0,112370.0,0.25887]
[1761685826279,0.4497817,112380.0,112370.0,0.25887]
[1761685826480,0.3608,112420.0,112410.0,0.11807]
[1761685826683,0.4497422,112430.0,112420.0,0.15112]
[1761685826879,0.4497422,112430.0,112420.0,0.29252]
[1761685827094,0.4497422,112430.0,112420.0,0.15112]
[1761685827382,0.3577422,112430.0,112420.0,0.29252]
[1761685827584,0.4497387,112440.0,112430.0,0.11807]
[1761685828185,0.3608,112440.0,112430.0,0.11807]
[1761685828787,0.3608,112450.0,112440.0,0.15112]
[1761685828993,0.0889263,112450.0,112440.0,0.29264]
[1761685829286,0.088923,112460.0,112450.0,0.11807]
[1761685829881,0.449723,112460.0,112450.0,0.0579]
[1761685830083,0.0889422,112430.0,112420.0,0.15112]
[1761685830283,0.0889422,112430.0,112420.0,0.2926]
[1761685831083,0.4497422,112430.0,112420.0,0.2926]
[1761685831279,0.0889422,112430.0,112420.0,0.2926]
[1761685831485,0.4497422,112430.0,112420.0,0.29264]
[1761685832085,0.4497379,112440.0,112420.0,0.29264]
[1761685832385,0.4497379,112440.0,112430.0,0.11807]
[1761685833090,0.0889379,112440.0,112430.0,0.11807]
[1761685833295,0.4497308,112450.0,112440.0,0.15112]
[1761685833486,0.4497308,112450.0,112440.0,0.29256]
[1761685833687,0.4497308,112450.0,112440.0,0.15112]
[1761685833894,0.0889404,112430.0,112420.0,0.14292]
[1761685834194,0.4497404,112430.0,112420.0,0.14292]
[1761685834390,0.4497404,112430.0,112420.0,0.28436]
[1761685834990,0.0889404,112430.0,112420.0,0.28436]
[1761685835187,0.4497404,112430.0,112420.0,0.14292]
[1761685835392,0.0889562,112410.0,112400.0,0.50372]
[1761685835594,0.0889562,112410.0,112400.0,0.28436]
[1761685835794,0.0889562,112410.0,112400.0,0.14292]
[1761685835983,0.0889562,112410.0,112400.0,0.28436]
[1761685836389,0.0889562,112410.0,112400.0,0.2844]
[1761685836797,0.3608,112420.0,112410.0,0.05592]
[1761685837698,0.3608,112420.0,112410.0,0.10987]
[1761685837993,0.3608,112420.0,112410.0,0.33248772]
[1761685838195,0.3608,112430.0,112420.0,0.14173]
[1761685838389,0.3608,112430.0,112420.0,0.50578772]
[1761685838591,0.3608,112450.0,112440.0,0.14173]
[1761685838792,0.3608,112450.0,112440.0,0.28321]
[1761685840190,0.3608,112460.0,112440.0,0.28321]
[1761685840397,0.3608,112460.0,112450.0,0.10987]
[1761685840698,0.3709812,112470.0,112460.0,0.14173]
[1761685840901,0.61605916,112470.0,112450.0,0.14144]
[1761685841102,0.3608,112460.0,112450.0,0.14144]
[1761685841491,0.3608,112460.0,112440.0,0.03186]
[1761685841492,0.58609772,112460.0,112440.0,0.03186]
[1761685841691,0.3608,112450.0,112440.0,0.1733]
[1761685841891,0.3608,112450.0,112440.0,0.22922]
[1761685842120,0.3608,112450.0,112440.0,0.28317]
[1761685842401,0.3608,112460.0,112450.0,0.10987]
[1761685842595,0.3608,112460.0,112440.0,0.22922]
[1761685842797,0.3608,112450.0,112440.0,0.22922]
[1761685842993,0.3608,112460.0,112440.0,0.28317]
[1761685843401,0.3608,112460.0,112450.0,0.10987]
[1761685844400,0.3709812,112470.0,112460.0,0.03186]
[1761685844604,0.39332881,112470.0,112460.0,0.1733]
[1761685845209,0.3608,112470.0,112460.0,0.28317]
[1761685845400,0.3608,112470.0,112460.0,0.59470422]
[1761685845600,0.3608,112490.0,112480.0,0.14173]
[1761685845900,0.3608,112490.0,112480.0,0.28313]
[1761685846100,0.3608,112500.0,112490.0,0.10987]
[1761685846298,0.02236159,112500.0,112490.0,0.10987]
[1761685846495,0.02236159,112500.0,112480.0,0.53406]
[1761685846806,0.38316159,112500.0,112490.0,0.10987]
[1761685847003,0.74396159,112500.0,112490.0,0.05592]
[1761685847202,0.74396159,112500.0,112480.0,0.28313]
[1761685847404,0.3608,112490.0,112480.0,0.28313]
[1761685847802,0.3608,112490.0,112480.0,0.14128]
[1761685848303,0.3608,112490.0,112480.0,0.28301]
[1761685848704,0.3608,112500.0,112480.0,0.28301]
[1761685849007,0.3608,112490.0,112480.0,0.28301]
[1761685849599,0.3608,112500.0,112490.0,0.10987]
[1761685851515,0.60843211,112500.0,112480.0,0.08778]
[1761685851703,0.60843211,112500.0,112490.0,0.1412]
[1761685851704,0.60575211,112500.0,112490.0,0.1412]
[1761685852005,0.38313439,112500.0,112490.0,0.1412]
[1761685853005,0.3608,112500.0,112490.0,0.1412]
[1761685853713,0.3608,112500.0,112490.0,0.19712]
[1761685854210,0.38314735,112500.0,112490.0,0.19712]
[1761685854396,0.38314735,112500.0,112490.0,0.1412]
[1761685855200,0.60576507,112500.0,112490.0,0.1412]
[1761685856704,0.38314735,112500.0,112490.0,0.25107]
[1761685858106,0.02234735,112500.0,112490.0,0.25107]
[1761685858317,0.02234735,112500.0,112490.0,0.7007631]
[1761685858512,0.3608,112510.0,112500.0,0.14173]
[1761685858710,0.38319731,112510.0,112500.0,0.08778]
[1761685859799,0.38319731,112510.0,112500.0,0.03186]
[1761685860417,0.60581503,112510.0,112490.0,0.19712]
[1761685860610,0.75039925,112500.0,112450.0,0.10987]
[1761685860819,0.3608,112470.0,112460.0,0.14173]
[1761685861001,0.3608,112470.0,112460.0,0.28269]
[1761685861711,0.3608,112480.0,112460.0,0.28269]
[1761685861712,0.3608,112480.0,112470.0,0.10987]
[1761685862105,0.38319084,112480.0,112470.0,0.10987]
[1761685862312,0.38319084,112480.0,112470.0,1.02139732]
[1761685862506,0.3608,112490.0,112470.0,0.42139732]
[1761685862708,0.3608,112500.0,112490.0,0.10987]
[1761685862917,0.38319461,112500.0,112490.0,0.25087]
[1761685863812,0.02239461,112500.0,112490.0,0.25087]
[1761685864816,0.3608,112510.0,112500.0,0.13544]
[1761685865018,0.38318956,112510.0,112500.0,0.13544]
[1761685865414,0.38318956,112510.0,112500.0,0.0861]
[1761685865615,0.38318956,112510.0,112500.0,0.03018]
[1761685865918,0.40698131,112510.0,112480.0,0.08032]
[1761685866114,0.3608,112500.0,112490.0,0.14088]
[1761685866308,0.74398956,112500.0,112490.0,0.23868]
[1761685866514,0.38318956,112500.0,112490.0,0.23868]
[1761685867722,0.3608,112500.0,112490.0,0.23868]
[1761685868310,0.3608,112510.0,112490.0,0.14088]
[1761685868614,0.58609772,112500.0,112480.0,0.08216]
[1761685868926,0.3608,112490.0,112480.0,0.27207]
[1761685869627,0.3608,112490.0,112480.0,0.03186]
[1761685869924,0.50432,112490.0,112470.0,0.14084]
[1761685870122,0.3608,112480.0,112470.0,0.24017]
[1761685872221,0.3608,112480.0,112470.0,0.14084]
[1761685872521,0.3608,112480.0,112470.0,0.24005]
[1761685874514,0.3608,112480.0,112470.0,0.14072]
[1761685874711,0.3608,112480.0,112470.0,0.19102]
[1761685874916,0.3608,112480.0,112470.0,0.24005]
[1761685875625,0.3608,112480.0,112470.0,0.46266772]
[1761685875823,0.3608,112490.0,112480.0,0.2171413]
[1761685876125,0.3608,112500.0,112490.0,0.09933]
[1761685876426,0.3608,112500.0,112490.0,0.24005]
[1761685878120,0.3608,112500.0,112490.0,0.46266772]
[1761685879418,0.3608,112510.0,112500.0,0.12824]
[1761685881228,0.3608,112510.0,112500.0,0.35085772]
[1761685881425,0.3608,112520.0,112510.0,0.09933]
[1761685881730,0.48817043,112550.0,112530.0,0.09933]
[1761685882030,0.38407679,112550.0,112540.0,0.35085772]
[1761685882228,0.38407679,112550.0,112540.0,0.12824]
[1761685882626,0.02327679,112550.0,112540.0,0.35085772]
[1761685883527,0.3608,112560.0,112550.0,0.09933]
[1761685883828,0.41576214,112570.0,112550.0,0.09933]
[1761685883829,0.02379175,112570.0,112560.0,0.12824]
[1761685884021,0.02379175,112580.0,112570.0,0.09933]
[1761685884227,0.03117039,112590.0,112580.0,0.12824]
[1761685884228,0.02379175,112590.0,112580.0,0.12824]
[1761685884419,0.04688217,112590.0,112580.0,0.35085772]
[1761685884930,0.04688217,112590.0,112580.0,0.12824]
[1761685885333,0.40768217,112590.0,112580.0,0.12824]
[1761685885625,0.40768217,112590.0,112580.0,0.35085772]
[1761685885626,0.04688217,112590.0,112580.0,0.35085772]
[1761685885831,0.02309042,112590.0,112580.0,0.71433772]
[1761685886132,0.02153532,112590.0,112580.0,0.71165772]
[1761685886319,0.02153532,112590.0,112580.0,0.71433772]
[1761685887133,0.02153532,112590.0,112580.0,1.31433772]
[1761685887328,0.02379175,112610.0,112600.0,0.12824]
[1761685887523,0.38459175,112610.0,112600.0,0.2686]
[1761685887724,0.02379175,112610.0,112600.0,0.2686]
[1761685887925,0.38459175,112610.0,112600.0,0.2686]
[1761685888130,0.3608,112620.0,112610.0,0.09933]
[1761685888827,0.3608,112620.0,112610.0,0.23965]
[1761685891840,0.3608,112620.0,112610.0,0.23949]
[1761685892335,0.58341772,112620.0,112610.0,0.14016]
[1761685892540,0.3608,112620.0,112610.0,0.14016]
[1761685893135,0.3608,112620.0,112610.0,0.23949]
[1761685895647,0.58341772,112620.0,112610.0,0.19046]
[1761685895857,0.3608,112620.0,112610.0,0.19046]
[1761685896050,0.58341772,112620.0,112610.0,0.23783]
[1761685896556,0.3608,112620.0,112610.0,0.23783]
[1761685898557,0.3608,112620.0,112610.0,0.0503]
[1761685898759,0.3608,112620.0,112610.0,0.19014]
[1761685898947,0.3608,112620.0,112610.0,0.23751]
[1761685905462,0.3608,112620.0,112610.0,0.23711]
[1761685908755,0.73269057,112620.0,112610.0,0.13944]
[1761685908967,0.3608,112620.0,112610.0,0.23323]
[1761685912257,0.38355889,112620.0,112610.0,0.23323]
[1761685915161,0.40735064,112620.0,112610.0,0.23323]
[1761685915761,0.38355889,112620.0,112610.0,0.23323]
[1761685916163,0.40735064,112620.0,112610.0,0.23323]
[1761685917259,0.43852103,112620.0,112610.0,0.23323]
[1761685917868,0.41472928,112620.0,112610.0,0.23323]
[1761685918162,0.40748953,112620.0,112610.0,0.23323]
[1761685918673,0.38355889,112620.0,112610.0,0.23323]
[1761685918868,0.40750628,112620.0,112610.0,0.23323]
[1761685920887,0.40750628,112620.0,112610.0,0.23275]
[1761685922358,0.40750628,112620.0,112610.0,0.23271]
[1761685922970,0.76544946,112620.0,112580.0,0.07533]
[1761685923270,0.7216,112590.0,112580.0,0.26162]
[1761685923572,1.11624946,112590.0,112580.0,0.07533]
[1761685923765,1.28179604,112590.0,112580.0,0.02891]
[1761685923963,1.28179604,112590.0,112560.0,0.24881]
[1761685924162,0.7216,112570.0,112560.0,0.24881]
[1761685924358,0.74435889,112570.0,112560.0,0.24881]
[1761685925067,0.02145,112570.0,112560.0,0.24881]
[1761685925264,0.02394658,112600.0,112570.0,0.08098]
[1761685925470,0.3608,112590.0,112580.0,0.24472]
[1761685925670,0.7216,112590.0,112580.0,0.24472]
[1761685926069,1.09349057,112590.0,112580.0,0.16374]
[1761685926374,0.7216,112590.0,112580.0,0.1058]
[1761685927171,0.72428,112590.0,112580.0,0.02482]
[1761685927382,0.7216,112590.0,112580.0,0.1058]
[1761685927673,0.7216,112590.0,112580.0,0.24476]
[1761685927875,1.09349057,112590.0,112580.0,0.24476]
[1761685928270,0.7216,112590.0,112580.0,0.24476]
[1761685929071,0.7216,112590.0,112580.0,0.1058]
[1761685929269,1.09349057,112590.0,112580.0,0.1058]
[1761685929478,1.09349057,112590.0,112580.0,0.02482]
[1761685929783,1.23245057,112590.0,112580.0,0.02482]
[1761685929977,0.7216,112590.0,112580.0,0.10725]
[1761685933788,0.7216,112590.0,112580.0,0.24621]
[1761685934983,0.7216,112590.0,112580.0,0.10725]
[1761685935189,0.7216,112590.0,112580.0,0.16378]
[1761685935585,1.09349057,112590.0,112580.0,0.20397]
[1761685936084,1.09617057,112590.0,112580.0,0.02482]
[1761685936287,1.09349057,112590.0,112580.0,0.02482]
[1761685936787,1.09349057,112590.0,112580.0,0.06501]
[1761685936984,1.09349057,112590.0,112580.0,0.10725]
[1761685937189,1.11722315,112590.0,112580.0,0.10725]
[1761685937788,0.74533258,112590.0,112580.0,0.10725]
[1761685939492,0.7216,112590.0,112580.0,0.24621]
[1761685942198,0.3608,112600.0,112590.0,0.08243]
[1761685942396,0.3608,112600.0,112590.0,0.59328057]
[1761685942596,0.3608,112620.0,112610.0,0.08243]
[1761685942896,0.3852548,112620.0,112610.0,0.22139]
[1761685947990,0.3608,112620.0,112610.0,0.22139]
[1761685950902,0.3608,112620.0,112610.0,0.22135]
[1761685951096,0.38518827,112620.0,112610.0,0.22135]
[1761685951498,0.38518827,112620.0,112610.0,0.17911]
[1761685952198,0.38786827,112620.0,112600.0,0.02331]
[1761685952400,0.73269057,112610.0,112600.0,0.02331]
[1761685952601,0.89599884,112610.0,112600.0,0.02331]
[1761685952995,0.75707884,112610.0,112600.0,0.0635]
[1761685953298,0.3608,112610.0,112600.0,0.10574]
[1761685955199,0.38518276,112610.0,112600.0,0.10574]
[1761685956798,0.3608,112610.0,112600.0,0.10574]
[1761685957099,0.00957534,112640.0,112630.0,0.07466]
[1761685957404,0.16375335,112640.0,112630.0,0.07466]
[1761685957895,0.88535335,112640.0,112630.0,0.07466]
[1761685958406,0.74643335,112640.0,112630.0,0.07466]
[1761685958702,0.88535335,112640.0,112630.0,0.07466]
[1761685959105,0.88535335,112640.0,112630.0,0.03688]
[1761685959496,0.88535335,112640.0,112620.0,0.09758]
[1761685959802,0.3608,112630.0,112620.0,0.09758]
[1761685960004,0.38563335,112630.0,112620.0,0.09758]
[1761685961203,0.3608,112630.0,112620.0,0.09758]
[1761685961404,0.38562308,112630.0,112620.0,0.09758]
[1761685962407,0.66291795,112630.0,112620.0,0.02292]
[1761685962707,0.66291795,112630.0,112620.0,0.0598]
[1761685963003,0.38562308,112630.0,112620.0,0.09758]
[1761685963195,0.66291795,112630.0,112620.0,0.09758]
[1761685963998,0.38562308,112630.0,112620.0,0.09758]
[1761685964197,0.66291795,112630.0,112620.0,0.09758]
[1761685964501,0.38562308,112630.0,112620.0,0.09758]
[1761685966301,0.52450308,112630.0,112620.0,0.09758]
[1761685966998,0.38562308,112630.0,112620.0,0.09758]
[1761685973420,0.66291795,112630.0,112620.0,0.09758]
[1761685973717,0.80179795,112630.0,112610.0,0.02292]
[1761685974016,0.63809487,112620.0,112610.0,0.02292]
[1761685974310,0.38562308,112620.0,112610.0,0.09758]
[1761685976317,0.66291795,112620.0,112610.0,0.02292]
[1761685977019,0.66291795,112620.0,112610.0,0.09758]
[1761685977318,0.66291795,112620.0,112610.0,0.02292]
[1761685978110,0.38562308,112620.0,112610.0,0.09758]
[1761685978315,0.66291795,112620.0,112610.0,0.09758]
[1761685979121,0.66291795,112620.0,112600.0,0.02331]
[1761685979318,0.77693487,112610.0,112600.0,0.02331]
[1761685979516,0.80175795,112610.0,112600.0,0.02331]
[1761685980413,0.87198995,112610.0,112600.0,0.02331]
[1761685980616,0.87198995,112610.0,112590.0,0.02292]
[1761685980925,0.3608,112600.0,112590.0,0.02292]
[1761685981122,0.38562308,112600.0,112590.0,0.09758]
[1761685981424,0.3608,112600.0,112590.0,0.09758]
[1761685984625,0.37018739,112600.0,112590.0,0.09758]
[1761685984821,0.64748226,112600.0,112590.0,0.09758]
[1761685985017,0.67233785,112600.0,112590.0,0.09758]
[1761685985927,0.67233785,112600.0,112590.0,0.02292]
[1761685986226,0.67501785,112600.0,112580.0,0.02292]
[1761685986421,0.77693487,112590.0,112580.0,0.02292]
[1761685986821,0.77961487,112590.0,112580.0,0.02292]
[1761685987224,0.80452029,112590.0,112560.0,0.08968]
[1761685987420,0.7216,112570.0,112560.0,0.08968]
[1761685990132,0.7216,112570.0,112560.0,0.36697487]
[1761685990632,0.7216,112570.0,112560.0,0.36965487]
[1761685991318,0.7216,112570.0,112560.0,0.45849237]
[1761685991319,0.3608,112570.0,112560.0,0.45849237]
[1761685991519,0.3608,112580.0,112570.0,0.0683]
[1761685991724,0.3608,112580.0,112570.0,0.48711487]
[1761685992525,0.3608,112580.0,112570.0,0.57594447]
[1761685992725,0.3608,112580.0,112570.0,0.58540624]
[1761685992922,0.3608,112590.0,112580.0,0.08745]
[1761685993128,0.3608,112590.0,112580.0,0.36474487]
[1761685993522,0.3608,112590.0,112580.0,0.36742487]
[1761685993730,0.3608,112590.0,112580.0,0.45624667]
[1761685993925,0.3608,112590.0,112580.0,1.05624667]
[1761685994226,0.3608,112590.0,112580.0,0.45624667]
[1761685994732,0.3608,112600.0,112590.0,0.0683]
[1761685994930,0.3608,112600.0,112590.0,0.48443487]
[1761685995235,0.3608,112600.0,112590.0,0.48711487]
[1761685995536,0.3608,112600.0,112590.0,0.48443487]
[1761685997328,0.3608,112600.0,112590.0,0.20714]
[1761685999934,0.3608,112600.0,112590.0,0.48443487]
[1761686000833,0.3608,112600.0,112590.0,1.08711487]
[1761686001034,0.3608,112600.0,112590.0,1.08443487]
[1761686005234,0.3608,112600.0,112590.0,1.17324877]
[1761686005434,0.3608,112600.0,112590.0,1.08443487]
[1761686006039,0.3608,112620.0,112610.0,0.0683]
[1761686006238,0.3608,112620.0,112610.0,0.48435487]
[1761686006838,0.3608,112620.0,112610.0,0.20706]
[1761686009444,0.3608,112620.0,112610.0,0.57583317]
[1761686009654,0.3608,112620.0,112610.0,0.20706]
[1761686012249,0.3856605,112620.0,112610.0,0.20706]
[1761686013552,0.3856605,112620.0,112610.0,0.0683]
[1761686019350,0.3856605,112620.0,112610.0,0.08734]
[1761686025157,0.3856605,112620.0,112610.0,0.01904]
[1761686025365,0.3856605,112620.0,112610.0,0.0189027]
[1761686025366,0.5343405,112620.0,112610.0,0.0189027]
[1761686025557,0.54828708,112620.0,112610.0,0.0189027]
[1761686026055,0.5243405,112620.0,112610.0,0.0495527]
[1761686026250,0.5243405,112620.0,112610.0,0.0189027]
[1761686029966,0.3856605,112620.0,112610.0,0.0189027]
[1761686030165,0.5243005,112620.0,112610.0,0.0189027]
[1761686030665,0.5243005,112620.0,112610.0,0.0495527]
[1761686030874,0.5243005,112620.0,112610.0,0.0189027]
[1761686031166,0.5243005,112620.0,112610.0,0.0782427]
[1761686032258,0.89616825,112620.0,112610.0,0.0782427]
[1761686032659,0.5243005,112620.0,112610.0,0.0782427]
[1761686032861,0.3856605,112620.0,112610.0,0.0782427]
[1761686044777,0.3856605,112620.0,112610.0,0.25573143]
[1761686047385,0.0248605,112620.0,112610.0,0.25573143]
[1761686047775,0.0248605,112620.0,112610.0,0.45262741]
[1761686048477,0.0248605,112620.0,112610.0,0.81342741]
[1761686049075,0.0248605,112620.0,112610.0,0.81074741]
[1761686049688,0.3608,112640.0,112630.0,0.0692]
[1761686049887,0.38566972,112640.0,112630.0,0.20772]
[1761686052483,0.02486972,112640.0,112630.0,0.20772]
[1761686054284,0.02486972,112640.0,112630.0,0.56852]
[1761686054790,0.02486972,112640.0,112630.0,0.20772]
[1761686054990,0.38566972,112640.0,112630.0,0.20772]
[1761686055890,0.02486972,112640.0,112630.0,0.20772]
[1761686056589,0.02486972,112640.0,112630.0,0.58210471]
[1761686056794,0.02486972,112640.0,112630.0,0.94290471]
[1761686056987,0.02486972,112640.0,112630.0,0.94022471]
[1761686057392,0.02486972,112640.0,112630.0,0.94290471]
[1761686057592,0.02486972,112640.0,112630.0,0.94022471]
[1761686059699,0.02486972,112640.0,112630.0,0.56852]
[1761686059895,0.02486972,112640.0,112630.0,0.20772]
[1761686060094,0.02486972,112640.0,112630.0,0.56852]
[1761686060388,0.02486972,112640.0,112630.0,0.94022471]
[1761686062487,0.02486972,112640.0,112630.0,0.94290471]
[1761686064490,0.02486972,112640.0,112630.0,0.94022471]
[1761686064691,0.02486972,112640.0,112630.0,0.94290471]
[1761686064992,0.02486972,112640.0,112630.0,0.94022471]
[1761686067786,0.02486972,112640.0,112630.0,0.74851744]
[1761686068287,0.02486972,112640.0,112630.0,0.92583488]
[1761686068486,0.3608,112660.0,112650.0,0.06745]
[1761686068689,0.02483925,112660.0,112650.0,0.92120488]
[1761686070492,0.02483925,112660.0,112650.0,1.00997138]
[1761686071387,0.02394658,112680.0,112670.0,0.06745]
[1761686071595,0.02394658,112680.0,112670.0,0.38308744]
[1761686071893,0.3608,112690.0,112680.0,0.1561929]
[1761686071894,0.38474658,112690.0,112680.0,0.1561929]
[1761686072093,0.38474658,112690.0,112680.0,0.52000804]
[1761686072697,0.38474658,112690.0,112680.0,0.43126514]
[1761686073495,0.02394658,112690.0,112680.0,0.88080804]
[1761686074093,0.38474658,112700.0,112690.0,0.06397]
[1761686074297,0.38474658,112700.0,112690.0,0.37956744]
[1761686075391,0.02394658,112700.0,112690.0,0.37956744]
[1761686080099,0.02394658,112700.0,112690.0,0.82910244]
[1761686080598,0.02394658,112700.0,112690.0,0.74036744]
[1761686080797,0.02394658,112700.0,112690.0,0.56305]
[1761686081002,0.02394658,112700.0,112690.0,0.74036744]
[1761686081699,0.02394658,112700.0,112690.0,0.83178244]
[1761686081899,0.02394658,112700.0,112690.0,0.82910244]
[1761686082703,0.02394658,112700.0,112690.0,0.74036744]
[1761686082905,0.02394658,112700.0,112690.0,0.82910254]
[1761686083102,0.02394658,112700.0,112690.0,0.74036744]
[1761686083408,0.02394658,112700.0,112690.0,0.37956744]
[1761686083598,0.04791339,112700.0,112690.0,0.37956744]
[1761686083797,0.04791339,112700.0,112690.0,0.74023092]
[1761686084211,0.04791339,112700.0,112690.0,1.00614694]
[1761686084502,0.04791339,112700.0,112690.0,0.56305]
[1761686084702,0.04791339,112700.0,112690.0,1.00614694]
[1761686084998,0.04791339,112700.0,112690.0,1.18600786]
[1761686085194,0.04791339,112700.0,112690.0,1.00882694]
[1761686085702,0.02396681,112700.0,112690.0,1.00882694]
[1761686086100,0.04791339,112700.0,112690.0,1.00882694]
[1761686086600,0.02396681,112700.0,112690.0,1.00882694]
[1761686087403,0.02396681,112700.0,112690.0,1.00614694]
[1761686089304,0.02396681,112700.0,112690.0,1.00882694]
[1761686089506,0.02396681,112700.0,112690.0,1.00614694]
[1761686093306,0.05511697,112710.0,112700.0,0.1520471]
[1761686093511,0.05511697,112710.0,112700.0,1.04438986]
[1761686093708,0.03117039,112720.0,112710.0,0.1376493]
[1761686093915,0.03117039,112720.0,112710.0,1.00528114]
[1761686094705,0.03117039,112720.0,112710.0,1.00796114]
[1761686094903,0.03117039,112720.0,112710.0,1.00528114]
[1761686095509,0.03117039,112720.0,112710.0,0.37858092]
[1761686095714,0.07797376,112720.0,112710.0,0.55576184]
[1761686096014,0.03117039,112720.0,112710.0,0.55576184]
[1761686096407,0.07797376,112720.0,112710.0,0.55576184]
[1761686096606,0.3608,112730.0,112720.0,0.06332]
[1761686096803,0.3608,112730.0,112720.0,0.41768184]
[1761686098721,0.37028528,112740.0,112730.0,0.06332]
[1761686099028,0.37028528,112740.0,112730.0,0.37850092]
[1761686099427,0.3608,112740.0,112730.0,0.37850092]
[1761686100235,0.53798092,112740.0,112730.0,0.20132]
[1761686100436,0.3608,112740.0,112730.0,0.20132]
[1761686100732,0.3608,112740.0,112730.0,0.37850092]
[1761686100923,0.3608,112740.0,112730.0,0.20132]
[1761686101228,0.3608,112740.0,112730.0,0.37850092]
[1761686105634,0.3608,112740.0,112730.0,0.64438564]
[1761686106135,0.3608,112750.0,112740.0,0.06224]
[1761686106431,0.3608,112750.0,112740.0,0.41660184]
[1761686106629,0.3608,112750.0,112740.0,0.50529784]
[1761686106820,0.3608,112760.0,112750.0,0.02226]
[1761686107128,0.3608,112760.0,112750.0,0.37503092]
[1761686107731,0.3608,112760.0,112750.0,0.55221184]
[1761686108034,0.3608,112760.0,112750.0,0.37503092]
[1761686108236,0.3608,112770.0,112760.0,0.05993]
[1761686108432,0.3608,112770.0,112760.0,0.41429184]
[1761686111135,0.3608,112770.0,112760.0,0.05993]
[1761686111340,0.3608,112770.0,112760.0,0.41429184]
[1761686112028,0.3608,112770.0,112760.0,0.19781]
[1761686112229,0.3608,112770.0,112760.0,0.37499092]
[1761686112941,0.3608,112770.0,112760.0,0.55217184]
[1761686113728,0.54066092,112770.0,112750.0,0.01449]
[1761686113928,0.3608,112760.0,112750.0,0.37377092]
[1761686119545,0.3608,112760.0,112750.0,0.19659]